bitfinex-derivatives/quotes_ETHF0:USTF0_20210405
["timestamp","ask_amount","ask_price","bid_price","bid_amount"]
[1617604746993,2.0,2017.9,2016.9,2.90695]
[1617604747193,2.0,2017.9,2016.9,5.65125]
[1617604748093,2.0,2018.6,2016.9,5.65125]
[1617604748296,1.0043,2018.0,2016.9,5.65125]
[1617604748495,2.0,2018.6,2016.9,5.65125]
[1617604748694,30.0,2018.8,2016.9,5.65125]
[1617604749094,2.90695,2018.0,2017.9,2.90695]
[1617604749294,2.0,2018.8,2017.9,4.61925]
[1617604751095,2.90695,2018.0,2017.9,4.61925]
[1617604751495,2.90695,2018.0,2016.9,2.7443]
[1617604751694,2.90695,2018.0,2016.2,1.9701]
[1617604751896,2.0,2017.9,2015.7,1.985]
[1617604752096,2.0,2017.9,2015.5,5.16226686]
[1617604752295,2.0,2017.9,2015.4,5.16262351]
[1617604752495,32.0,2017.9,2015.4,5.16262351]
[1617604752697,32.0,2017.9,2015.3,5.16307035]
[1617604752995,32.0,2017.9,2015.1,13.7722]
[1617604753195,32.0,2017.9,2016.5,2.90695]
[1617604755098,2.90695,2016.6,2016.5,2.90695]
[1617604755900,4.66305,2016.6,2016.5,2.90695]
[1617604756099,4.66305,2016.6,2014.9,5.16367812]
[1617604756499,4.66305,2016.6,2014.7,6.31116214]
[1617604756500,2.0,2016.5,2014.7,5.16418717]
[1617604756903,2.0,2016.5,2014.5,5.16443178]
[1617604757103,2.0,2016.5,2015.5,2.90695]
[1617604759102,2.0,2016.5,2016.0,2.90695]
[1617604759703,1.7561,2016.6,2016.0,2.90695]
[1617604760103,1.7561,2016.6,2014.4,7.45215703]
[1617604760307,1.7561,2016.6,2014.4,5.16465703]
[1617604760504,1.7561,2016.6,2013.8,7.46006016]
[1617604760505,1.7561,2016.6,2014.3,5.16514772]
[1617604760804,1.7561,2016.6,2014.1,6.31295832]
[1617604760805,1.7561,2016.6,2014.1,5.16562263]
[1617604761212,32.9868,2017.0,2015.6,2.90695]
[1617604761605,67.8742,2016.3,2014.3,5.16911082]
[1617604761804,70.4837,2016.3,2014.4,5.17420134]
[1617604762005,72.4837,2016.3,2014.4,5.17420134]
[1617604762704,73.4635,2016.3,2014.3,5.17434306]
[1617604763104,73.4635,2016.3,2015.5,2.90695]
[1617604764506,103.4635,2016.3,2015.5,2.90695]
[1617604764907,103.4635,2016.3,2014.2,5.17472017]
[1617604765106,2.90695,2014.8,2014.4,2.90695]
[1617604765307,5.37185,2014.8,2014.4,2.90695]
[1617604767210,2.90695,2014.8,2014.7,2.90695]
[1617604767410,106.0345,2016.3,2014.7,2.90695]
[1617604767811,103.4635,2016.3,2014.7,2.90695]
[1617604768614,35.5893,2016.3,2014.7,2.90695]
[1617604769212,35.5893,2016.3,2015.2,2.90695]
[1617604769414,32.9798,2016.3,2015.2,2.90695]
[1617604771217,2.90695,2015.3,2015.2,2.90695]
[1617604774223,2.0,2016.6,2015.2,2.90695]
[1617604774420,2.0,2016.6,2015.2,5.22945]
[1617604775021,32.0,2016.6,2015.2,5.22945]
[1617604775221,32.0,2016.6,2015.9,2.90695]
[1617604777123,2.90695,2016.0,2015.4,2.90695]
[1617604777321,4.90695,2016.0,2015.4,2.90695]
[1617604779223,2.90695,2015.5,2015.4,2.90695]
[1617604784029,2.90695,2015.5,2014.7,5.18210177]
[1617604784431,2.90695,2015.5,2014.6,5.18221588]
[1617604784729,2.90695,2015.5,2014.5,5.18223619]
[1617604785330,2.0,2016.0,2015.2,2.90695]
[1617604785730,32.0,2016.0,2015.2,2.90695]
[1617604786231,32.0,2016.0,2014.5,5.18221269]
[1617604786431,34.8349,2016.0,2014.5,5.18221269]
[1617604786630,34.8349,2016.0,2014.3,6.33381552]
[1617604786631,34.8349,2016.0,2014.3,5.18255625]
[1617604787030,34.8349,2016.0,2014.2,5.18276181]
[1617604787233,2.90695,2014.3,2014.2,8.08971181]
[1617604787931,2.90695,2014.3,2014.2,2.90695]
[1617604788331,3.90875,2014.3,2014.2,2.90695]
[1617604788531,2.90695,2014.3,2014.2,2.90695]
[1617604789133,0.9973,2015.8,2014.2,2.90695]
[1617604789134,0.9973,2015.8,2014.2,8.09017835]
[1617604789334,2.9973,2015.8,2015.1,2.90695]
[1617604789534,32.9973,2015.8,2014.2,2.5243]
[1617604789933,32.9973,2015.8,2014.3,5.18298933]
[1617604790633,32.9973,2015.8,2014.2,7.70732936]
[1617604790833,32.9773,2015.8,2014.2,7.70732936]
[1617604791136,32.9773,2015.8,2014.3,5.1829717]
[1617604791333,32.9773,2015.8,2014.7,2.90695]
[1617604793434,2.90695,2014.8,2014.7,2.90695]
[1617604795037,32.0,2016.9,2014.7,2.90695]
[1617604795240,32.0,2016.9,2014.7,5.30265]
[1617604795438,32.0,2016.9,2015.7,2.90695]
[1617604795640,32.0,2016.9,2015.7,5.69105]
[1617604797339,2.90695,2015.8,2015.7,5.69105]
[1617604797539,3.89985,2015.8,2015.7,5.69105]
[1617604798239,2.90695,2015.8,2015.7,5.69105]
[1617604798738,2.90695,2015.8,2015.7,2.90695]
[1617604799538,3.91115,2015.8,2015.7,2.90695]
[1617604799743,2.90695,2015.8,2015.7,2.90695]
[1617604801443,32.0,2016.9,2015.7,2.90695]
[1617604801641,2.0,2016.9,2015.7,5.07195]
[1617604801844,75.2622,2017.2,2015.7,5.07195]
[1617604802545,1.0029,2017.2,2015.7,5.07195]
[1617604803444,1.0029,2017.2,2016.4,2.90695]
[1617604803645,1.0029,2017.2,2016.4,5.69745]
[1617604805447,1.0029,2017.2,2017.0,2.90695]
[1617604805647,1.0029,2017.2,2017.0,4.77065]
[1617604805847,1.0029,2017.2,2017.0,1.8637]
[1617604807348,2.90695,2017.1,2017.0,4.77065]
[1617604813757,0.9841,2017.4,2017.0,4.77065]
[1617604814258,2.0,2018.0,2017.0,4.77065]
[1617604815259,2.0,2018.1,2017.0,4.77065]
[1617604815660,2.0,2018.1,2017.7,2.90695]
[1617604817667,2.0,2018.1,2018.0,2.90695]
[1617604818264,2.0,2018.8,2018.0,2.90695]
[1617604818764,30.0,2018.7,2018.0,2.90695]
[1617604818964,2.0,2018.6,2018.0,2.90695]
[1617604819565,2.90695,2018.1,2018.0,2.90695]
[1617604821269,35.75145,2018.1,2016.5,5.15528171]
[1617604821668,2.0,2018.0,2016.2,5.15390938]
[1617604821868,30.0,2017.9,2016.2,5.15390938]
[1617604822069,2.0,2017.8,2016.0,5.15745407]
[1617604822268,30.0,2017.7,2016.0,5.15745407]
[1617604822468,30.0,2017.7,2014.6,9.74185769]
[1617604822469,2.0,2017.6,2015.9,5.16030339]
[1617604822668,81.1723,2017.3,2015.9,5.16030339]
[1617604823669,81.1723,2017.3,2016.8,2.90695]
[1617604824971,81.1723,2017.3,2015.9,5.16030339]
[1617604825170,83.6201,2017.3,2015.9,5.16030339]
[1617604825372,85.6201,2017.3,2015.9,5.16030339]
[1617604825770,85.6201,2017.3,2016.7,2.90695]
[1617604826370,30.0,2017.2,2015.8,5.16746719]
[1617604826570,30.0,2017.2,2015.9,5.16752917]
[1617604826972,30.0,2017.2,2015.8,5.16842218]
[1617604827672,30.0,2017.2,2016.3,2.90695]
[1617604828472,81.1723,2017.3,2016.3,2.90695]
[1617604828675,81.1723,2017.3,2016.3,4.93295]
[1617604829175,2.0,2017.8,2016.3,4.93295]
[1617604829775,32.0,2018.0,2016.8,2.90695]
[1617604831675,32.0,2018.0,2017.1,2.90695]
[1617604832877,2.0,2018.0,2017.1,2.90695]
[1617604833576,32.0,2018.0,2017.1,2.90695]
[1617604833778,2.90695,2017.2,2017.1,2.90695]
[1617604835181,3.88835,2017.2,2017.1,2.90695]
[1617604835383,2.90695,2017.2,2017.1,2.90695]
[1617604837183,2.0,2018.0,2017.1,2.90695]
[1617604837382,2.0,2018.0,2017.1,4.90615]
[1617604837583,2.571,2018.1,2017.1,4.90615]
[1617604837783,99.2294,2018.3,2017.5,2.90695]
[1617604839790,2.90695,2017.6,2017.5,2.90695]
[1617604841390,70.22,2018.3,2017.5,2.90695]
[1617604841591,69.2294,2018.3,2017.5,2.90695]
[1617604841791,69.2294,2018.3,2018.0,2.90695]
[1617604842493,69.2294,2018.3,2017.6,2.6477]
[1617604843093,71.5671,2018.3,2016.7,5.15946649]
[1617604843296,71.5671,2018.3,2016.6,5.16016115]
[1617604843893,71.5671,2018.3,2017.4,2.90695]
[1617604844895,69.2294,2018.3,2017.4,2.90695]
[1617604845196,2.0,2018.2,2017.4,2.90695]
[1617604845396,3.0043,2018.2,2017.4,2.90695]
[1617604845900,2.90695,2017.5,2017.4,2.90695]
[1617604850207,0.9835,2018.2,2017.4,2.90695]
[1617604850408,0.9835,2018.2,2017.4,4.97165]
[1617604851710,2.0,2019.1,2017.4,4.97165]
[1617604851909,32.0,2019.1,2018.1,2.90695]
[1617604852108,32.0,2019.1,2018.1,4.77075]
[1617604853908,2.90695,2018.2,2018.1,4.77075]
[1617604857810,3.88815,2018.2,2018.1,4.77075]
[1617604859112,3.88815,2018.2,2017.4,2.0647]
[1617604859312,3.88815,2018.2,2016.5,5.14386014]
[1617604859513,3.88815,2018.2,2016.4,5.14511108]
[1617604859912,0.9812,2018.2,2017.7,2.90695]
[1617604860113,0.9812,2018.2,2016.6,1.7429]
[1617604860315,2.9475,2018.2,2016.6,1.7429]
[1617604860515,32.9475,2018.2,2016.6,1.7429]
[1617604861315,32.9475,2018.2,2016.3,5.14647336]
[1617604861716,2.9475,2018.2,2016.3,5.14647336]
[1617604861917,0.9812,2018.2,2017.7,2.90695]
[1617604864022,2.90695,2017.8,2017.7,2.90695]
[1617604864221,2.90695,2017.8,2016.4,5.14892937]
[1617604865921,2.0,2018.0,2017.1,2.90695]
[1617604866924,32.0445,2018.1,2017.1,2.90695]
[1617604867725,2.0445,2018.1,2017.1,2.90695]
[1617604867924,2.90695,2017.2,2017.1,2.90695]
[1617604869325,5.33735,2017.2,2017.1,2.90695]
[1617604875537,2.90695,2017.2,2017.1,2.90695]
[1617604879245,4.67335,2017.2,2017.1,2.90695]
[1617604879439,4.66335,2017.2,2017.1,2.90695]
[1617604882144,4.66335,2017.2,2016.1,5.14389363]
[1617604882342,34.66335,2017.2,2016.1,5.14389363]
[1617604882542,34.66335,2017.2,2016.0,5.14590378]
[1617604882944,34.66335,2017.2,2015.9,5.14808373]
[1617604883344,34.66335,2017.2,2015.8,5.15248436]
[1617604883345,63.0671,2016.9,2015.8,5.15248436]
[1617604883547,64.0455,2016.9,2015.7,5.15219722]
[1617604883947,64.0455,2016.9,2015.8,5.15121725]
[1617604884147,64.0455,2016.9,2016.3,2.90695]
[1617604884349,64.0455,2016.9,2016.4,5.17008012]
[1617604884350,63.0671,2016.9,2016.4,5.17008012]
[1617604886152,2.90695,2016.7,2016.6,2.90695]
[1617604886955,2.90695,2016.7,2016.6,8.06768327]
[1617604887158,2.90695,2016.7,2016.6,2.90695]
[1617604887753,2.90695,2016.7,2016.5,6.30474259]
[1617604887953,4.66615,2016.7,2016.5,6.30474259]
[1617604888156,4.66615,2016.7,2015.7,8.59737625]
[1617604888157,4.66615,2016.7,2016.6,5.16064552]
[1617604888554,4.66615,2016.7,2016.5,5.16128991]
[1617604889853,4.66615,2016.7,2016.4,5.16172371]
[1617604890754,2.90695,2016.7,2016.4,5.16172371]
[1617604891656,2.90695,2016.7,2016.5,5.16025151]
[1617604892960,2.90695,2016.7,2016.6,5.15950737]
[1617604894259,2.90695,2016.7,2016.5,5.1588966]
[1617604894664,2.90695,2016.7,2016.6,5.15861172]
[1617604895062,2.90695,2016.7,2016.5,5.15963618]
[1617604895962,2.90695,2016.7,2016.6,5.15907939]
[1617604896363,2.90695,2016.7,2016.5,5.15932522]
[1617604898764,2.90695,2016.7,2016.6,5.16555335]
[1617604900164,2.90695,2016.7,2016.6,8.07250335]
[1617604900364,2.90695,2016.7,2016.6,5.16555335]
[1617604902266,2.90695,2016.7,2016.6,8.07250335]
[1617604922995,2.90695,2016.7,2016.4,4.67965745]
[1617604923398,2.90695,2016.7,2015.2,10.74292788]
[1617604923399,2.90695,2016.7,2016.3,5.09609462]
[1617604923597,32.90695,2016.7,2016.3,3.14139462]
[1617604923799,32.90695,2016.7,2015.6,7.48919866]
[1617604923997,2.0,2016.6,2015.6,7.48919866]
[1617604924197,30.0,2016.5,2015.3,7.49632193]
[1617604924396,32.1803,2016.5,2015.5,2.90695]
[1617604924999,32.1803,2016.5,2015.5,2.57625]
[1617604925399,32.1803,2016.5,2015.5,5e-05]
[1617604925801,32.1803,2016.5,2015.1,7.49601188]
[1617604926201,34.1803,2016.5,2015.1,7.49601188]
[1617604926401,2.90695,2015.2,2015.1,7.49601188]
[1617604926601,4.84575,2015.2,2015.1,7.49601188]
[1617604926803,4.84575,2015.2,2015.0,7.49603281]
[1617604927002,4.84575,2015.2,2015.1,7.50017588]
[1617604929604,2.90695,2015.2,2015.1,7.50017588]
[1617604930405,2.90695,2015.2,2014.9,2.90695]
[1617604930807,2.90695,2015.2,2015.1,7.49578015]
[1617604932010,2.90695,2015.2,2015.1,7.73919793]
[1617604934416,2.90695,2015.2,2015.1,7.49578015]
[1617604934813,2.90695,2015.2,2015.0,7.5061708]
[1617604936914,2.90695,2015.2,2015.1,0.24340718]
[1617604937414,2.90695,2015.2,2014.9,2.90695]
[1617604937915,2.90695,2015.2,2014.9,10.3961966]
[1617604940014,72.7083,2016.3,2014.9,10.3961966]
[1617604940214,72.7083,2016.3,2014.9,12.5143966]
[1617604940416,72.7083,2016.3,2015.7,5.18183114]
[1617604940617,2.90695,2015.8,2015.7,5.18183114]
[1617604941718,2.90695,2015.8,2015.6,6.3321259]
[1617604942521,30.0,2016.9,2015.7,6.32936205]
[1617604942721,2.90695,2016.1,2015.7,8.29206205]
[1617604942922,2.90695,2016.1,2015.9,5.17691156]
[1617604943423,2.90695,2016.1,2015.9,6.3247398]
[1617604943622,2.90695,2016.1,2015.8,6.3245016]
[1617604944024,2.90695,2016.1,2016.0,5.17686775]
[1617604944726,2.90695,2016.1,2016.0,8.08381775]
[1617604945125,2.90695,2016.1,2016.0,2.90695]
[1617604947131,2.90695,2016.1,2016.0,9.23667748]
[1617604948529,2.90695,2016.1,2016.0,2.90695]
[1617604948932,2.90695,2016.1,2016.0,9.24034624]
[1617604949935,2.90695,2016.1,2016.0,2.90695]
[1617604950432,2.90695,2016.1,2016.0,5.73975]
[1617604951833,3.89105,2016.1,2016.0,5.73975]
[1617604952934,2.90695,2016.1,2016.0,5.73975]
[1617604955340,30.0,2017.4,2016.0,5.73975]
[1617604955539,66.1994,2017.5,2016.0,5.73975]
[1617604955739,66.1994,2017.5,2016.7,5.17749864]
[1617604955939,66.1994,2017.5,2016.7,7.03869864]
[1617604956339,66.1994,2017.5,2016.8,5.17201276]
[1617604956539,2.571,2018.8,2016.9,5.17098494]
[1617604956740,32.571,2018.8,2017.0,2.90695]
[1617604957339,32.571,2018.8,2017.0,8.07461067]
[1617604957539,2.571,2018.8,2017.0,8.07461067]
[1617604957738,1.0047,2019.0,2017.2,5.1649199]
[1617604957939,30.0,2019.3,2017.2,7.0135199]
[1617604958139,30.0,2019.3,2017.4,5.16154125]
[1617604958539,30.0,2019.3,2017.6,5.15838408]
[1617604958739,2.90695,2017.9,2017.7,2.90695]
[1617604958940,2.90695,2017.9,2017.7,9.83424259]
[1617604959640,2.90695,2017.9,2017.8,5.15877455]
[1617604960043,2.90695,2017.9,2017.7,4.67645]
[1617604961144,2.90695,2017.9,2017.7,2.90695]
[1617604962044,2.90695,2017.9,2017.1,5.14223014]
[1617604962244,2.90695,2017.9,2017.0,5.14016782]
[1617604962643,2.90695,2017.9,2016.9,5.14094396]
[1617604962844,30.0,2019.0,2017.6,2.90695]
[1617604963244,0.983,2019.3,2017.6,2.90695]
[1617604963846,30.0,2019.5,2017.6,2.90695]
[1617604964446,2.571,2019.6,2017.6,2.90695]
[1617604964849,2.571,2019.6,2018.1,2.90695]
[1617604965049,2.571,2019.6,2018.1,4.63455]
[1617604965851,4.571,2021.0,2018.1,4.63455]
[1617604966049,30.0,2020.4,2018.1,4.63455]
[1617604966850,30.0,2020.4,2018.9,2.90695]
[1617604967051,30.0,2020.4,2018.9,5.03835]
[1617604968751,2.90695,2019.0,2018.9,5.03835]
[1617604970956,2.90695,2019.0,2018.9,2.90695]
[1617604971157,2.90695,2019.0,2016.8,17.9834273]
[1617604971354,2.90695,2019.0,2016.8,5.1001273]
[1617604971555,2.90695,2019.0,2016.5,0.9849]
[1617604971556,2.90695,2019.0,2016.7,6.96182602]
[1617604972755,30.0,2020.0,2018.8,2.90695]
[1617604972957,30.0,2020.0,2017.8,0.9896]
[1617604973155,30.0,2020.0,2017.7,2.2068]
[1617604973358,30.981,2020.0,2017.7,2.2068]
[1617604973555,30.0,2020.0,2017.7,2.2068]
[1617604974155,30.0,2020.0,2017.7,3.2021]
[1617604974555,3.6467,2020.1,2017.7,3.2021]
[1617604974756,74.2295,2020.4,2018.9,2.90695]
[1617604974957,2.0,2020.4,2018.9,2.90695]
[1617604975358,32.0,2020.4,2018.9,2.90695]
[1617604976759,2.90695,2019.0,2018.9,2.90695]
[1617604980363,2.90695,2019.0,2016.7,1.8612]
[1617604980564,2.90695,2019.0,2016.6,18.11558398]
[1617604980763,2.90695,2019.0,2016.5,6.08401587]
[1617604980963,2.90695,2018.5,2018.4,2.90695]
[1617604981165,5.15015,2018.5,2018.4,2.90695]
[1617604981763,5.15015,2018.5,2016.5,0.9849]
[1617604982967,2.2432,2018.5,2018.0,2.90695]
[1617604984766,2.6196,2019.4,2018.0,2.90695]
[1617604984969,32.0,2019.9,2018.3,2.90695]
[1617604985268,2.0,2019.9,2018.3,2.90695]
[1617604985470,30.0,2019.8,2018.3,2.90695]
[1617604985670,32.0,2019.8,2018.3,2.90695]
[1617604987071,2.90695,2018.4,2018.3,2.90695]
[1617604988275,2.90695,2018.4,2016.3,13.4172]
[1617604988673,2.90695,2018.4,2016.0,5.08482171]
[1617604988874,2.90695,2018.4,2015.8,5.0890755]
[1617604989076,2.7628,2018.7,2015.7,5.09134775]
[1617604989475,2.7628,2018.7,2015.6,5.09186541]
[1617604989674,2.7528,2018.7,2015.6,5.09186541]
[1617604990477,2.7528,2018.7,2015.7,5.09034134]
[1617604990876,2.7528,2018.7,2015.8,5.09004605]
[1617604991076,2.7528,2018.7,2017.8,2.90695]
[1617604992276,30.0,2018.9,2017.8,2.90695]
[1617604992676,32.0,2019.3,2017.8,2.90695]
[1617604993078,2.90695,2017.9,2017.8,2.90695]
[1617604993677,32.0,2019.3,2017.8,2.90695]
[1617604993878,32.0,2019.3,2017.8,4.94415]
[1617604994079,30.0,2019.3,2017.8,4.94415]
[1617604994278,74.3311,2020.5,2017.8,4.94415]
[1617604994478,2.0,2019.8,2017.8,4.94415]
[1617604995082,2.0,2019.8,2018.8,2.90695]
[1617604995481,2.0,2019.8,2018.3,2.0671]
[1617604996482,2.0,2019.8,2017.8,2.0372]
[1617604997081,2.0,2019.8,2018.5,2.90695]
[1617604999084,3.5578,2020.1,2018.8,2.90695]
[1617604999287,2.571,2020.1,2018.8,2.90695]
[1617605000284,30.0,2020.5,2018.8,2.90695]
[1617605001085,30.0,2020.5,2019.2,2.90695]
[1617605001886,30.0,2020.6,2019.2,2.90695]
[1617605002285,12.0,2020.4,2019.2,2.90695]
[1617605003086,2.90695,2019.3,2018.4,1.7121]
[1617605003285,4.74665,2019.3,2017.3,14.0211]
[1617605004085,4.74665,2019.3,2016.6,5.06460579]
[1617605004488,4.74665,2019.3,2016.5,5.06663188]
[1617605004987,1.8397,2019.3,2018.4,2.90695]
[1617605005394,1.8397,2019.3,2018.4,3.88665]
[1617605005596,1.8397,2019.3,2018.4,2.90695]
[1617605006596,30.9943,2020.1,2018.4,2.90695]
[1617605006998,30.9943,2020.1,2017.5,2.4574]
[1617605006999,30.9943,2020.1,2018.9,2.90695]
[1617605008196,30.9943,2020.1,2017.5,2.4574]
[1617605008396,30.9943,2020.1,2015.7,8.44362541]
[1617605008597,30.9943,2020.1,2017.0,5.06691286]
[1617605008796,30.9943,2020.1,2017.1,0.23534793]
[1617605008996,30.0,2020.1,2018.5,2.90695]
[1617605009798,30.0,2020.0,2018.5,2.90695]
[1617605011198,2.90695,2018.6,2018.5,2.90695]
[1617605011798,2.90695,2018.6,2018.5,3.90545]
[1617605011997,2.90695,2018.6,2018.5,2.90695]
[1617605028420,4.66595,2018.6,2018.5,2.90695]
[1617605028621,4.66595,2018.6,2017.9,5.09804663]
[1617605028822,4.66595,2018.6,2017.7,5.10055523]
[1617605029222,2.90695,2018.2,2018.1,2.90695]
[1617605030022,2.90695,2018.2,2018.1,3.14380602]
[1617605032723,2.0,2019.4,2018.1,3.14380602]
[1617605032924,2.0,2019.4,2018.1,5.55960602]
[1617605033123,2.0,2019.4,2018.8,2.90695]
[1617605033323,2.0,2019.4,2018.8,4.92775]
[1617605034124,2.0,2019.4,2018.8,2.0208]
[1617605034326,2.0,2019.4,2018.1,2.4158]
[1617605034526,2.0,2019.4,2018.2,0.23627102]
[1617605034726,0.991,2019.5,2018.2,0.23627102]
[1617605034925,32.0,2019.7,2018.1,0.23617348]
[1617605035226,32.0,2019.7,2018.7,2.90695]
[1617605035427,32.0,2019.7,2018.1,0.23617348]
[1617605035626,32.0,2019.7,2018.0,2.7208]
[1617605035827,32.0,2019.7,2018.1,0.23600925]
[1617605037227,32.0,2019.7,2018.6,2.90695]
[1617605037928,2.0,2019.7,2018.6,2.90695]
[1617605038128,30.0,2019.7,2018.6,2.90695]
[1617605038328,2.0,2019.6,2018.6,2.90695]
[1617605038630,2.0,2019.6,2018.9,5.12397624]
[1617605039230,2.90695,2019.0,2018.9,5.12397624]
[1617605039430,3.88925,2019.0,2018.9,5.12397624]
[1617605039729,2.90695,2019.0,2018.9,5.12397624]
[1617605041229,2.90695,2019.0,2018.9,8.03092624]
[1617605041630,2.90695,2019.0,2018.9,9.16427606]
[1617605042029,2.90695,2019.0,2018.9,2.90695]
[1617605043130,30.0,2020.3,2018.9,2.90695]
[1617605043330,30.0,2020.3,2019.4,2.90695]
[1617605043930,30.0,2020.3,2019.4,4.88495]
[1617605044633,14.0,2020.4,2019.4,4.88495]
[1617605045234,2.90695,2019.5,2019.4,9.98992985]
[1617605045635,2.90695,2019.5,2019.4,4.88495]
[1617605046050,2.90695,2019.5,2019.4,11.11458085]
[1617605046433,2.90695,2019.5,2019.4,4.88495]
[1617605046733,2.90695,2019.5,2019.4,9.98205597]
[1617605047333,2.90695,2019.9,2019.4,4.88495]
[1617605047733,2.90695,2019.9,2019.7,5.0935687]
[1617605048334,2.90695,2019.9,2019.4,4.88495]
[1617605048335,2.90695,2019.9,2019.8,5.09198567]
[1617605048734,12.0,2020.4,2019.8,5.09198567]
[1617605049237,12.0,2020.4,2020.3,2.90695]
[1617605049437,12.0,2020.4,2020.3,5.05945]
[1617605050139,12.0,2020.4,2020.3,10.1640891]
[1617605051238,14.90695,2020.4,2020.3,10.1640891]
[1617605051640,14.90695,2020.4,2020.3,5.05945]
[1617605051839,14.90695,2020.4,2020.3,11.29541727]
[1617605052039,14.90695,2020.4,2020.3,5.05945]
[1617605052241,12.0,2020.4,2020.3,5.05945]
[1617605052640,72.0098,2021.7,2020.3,5.05945]
[1617605052842,31.9914,2023.2,2020.3,5.05945]
[1617605053041,31.0,2023.2,2020.3,5.05945]
[1617605053242,31.0,2023.2,2021.7,2.90695]
[1617605053443,31.0,2023.2,2021.7,5.25125]
[1617605054044,30.0,2023.2,2021.7,5.25125]
[1617605054444,32.0,2023.2,2021.7,5.25125]
[1617605055145,32.9949,2023.2,2021.7,5.25125]
[1617605055345,32.9949,2023.2,2022.1,2.90695]
[1617605055645,32.0,2023.2,2022.1,2.90695]
[1617605056049,30.0,2023.1,2022.1,2.90695]
[1617605056246,30.0,2023.1,2021.7,2.3443]
[1617605056446,30.0,2023.1,2021.1,5.06731902]
[1617605056646,2.0,2023.0,2021.1,5.06731902]
[1617605056849,30.0,2022.9,2021.0,5.06919618]
[1617605057047,2.0,2022.8,2021.0,5.06919618]
[1617605057248,30.0,2022.7,2021.1,2.90695]
[1617605057448,2.0,2022.6,2021.1,2.90695]
[1617605057648,34.2101,2022.6,2021.1,2.90695]
[1617605057847,34.2101,2022.6,2020.8,5.07234336]
[1617605058349,34.2101,2022.6,2020.6,5.07558702]
[1617605059153,34.2101,2022.6,2019.6,8.4593117]
[1617605059154,34.2101,2022.6,2020.7,5.07285856]
[1617605059349,34.2101,2022.6,2021.6,2.90695]
[1617605060952,4.2101,2022.6,2021.6,2.90695]
[1617605061152,2.0,2022.6,2021.6,2.90695]
[1617605061350,2.90695,2021.7,2021.6,2.90695]
[1617605062750,2.0,2023.0,2021.6,2.90695]
[1617605063154,30.0,2023.2,2021.6,2.90695]
[1617605063356,30.0,2023.2,2022.1,2.90695]
[1617605063557,30.0,2023.2,2022.1,4.96015]
[1617605065360,2.90695,2022.2,2022.1,4.96015]
[1617605069064,2.90695,2022.2,2022.1,2.90695]
[1617605072972,2.90695,2022.2,2021.4,2.4218]
[1617605073171,2.90695,2022.2,2020.7,1.8216]
[1617605073372,2.90695,2022.2,2021.7,2.90695]
[1617605074374,2.90695,2022.2,2021.7,5.15775]
[1617605075474,2.90695,2022.2,2022.1,2.90695]
[1617605079580,30.0,2023.2,2022.1,2.90695]
[1617605081381,30.0,2023.2,2022.6,2.90695]
[1617605081581,30.0,2023.2,2022.6,4.67375]
[1617605082581,30.0,2023.2,2022.6,2.90695]
[1617605082782,30.0,2023.2,2021.7,2.2508]
[1617605082983,2.0,2023.1,2020.7,1.7485]
[1617605083182,2.0,2023.1,2020.2,1.0042]
[1617605083382,2.0,2023.1,2022.2,2.90695]
[1617605084184,30.0,2023.2,2022.2,5.68335]
[1617605085383,2.90695,2022.3,2022.2,5.68335]
[1617605086385,30.0,2023.2,2022.2,5.68335]
[1617605087387,30.0,2023.2,2022.7,2.90695]
[1617605087985,27.0,2023.2,2022.7,2.90695]
[1617605088590,2.0,2023.1,2022.7,2.90695]
[1617605089388,2.90695,2022.8,2022.7,2.90695]
[1617605097800,15.90695,2022.8,2022.7,2.90695]
[1617605099201,13.0,2022.8,2022.7,2.90695]
[1617605100804,15.7588,2022.8,2021.4,0.9924]
[1617605101004,15.7588,2022.8,2019.9,4.95431192]
[1617605101204,15.7588,2022.8,2019.8,13.3582]
[1617605101606,15.7588,2022.8,2022.2,2.90695]
[1617605102006,2.0,2022.7,2022.2,2.90695]
[1617605102205,15.7588,2022.8,2022.2,2.90695]
[1617605102807,15.7588,2022.8,2019.8,13.3582]
[1617605103010,45.7588,2022.8,2019.6,0.9973]
[1617605103407,45.7488,2022.8,2019.6,0.9973]
[1617605103608,15.7488,2022.8,2021.8,2.90695]
[1617605104610,17.7488,2022.8,2021.8,2.90695]
[1617605105513,2.90695,2021.9,2021.8,2.90695]
[1617605106713,12.99,2022.8,2021.8,2.90695]
[1617605107513,12.99,2022.8,2022.2,2.90695]
[1617605107715,12.99,2022.8,2020.1,1.0007]
[1617605107915,15.0265,2022.8,2020.0,12.8249]
[1617605108117,15.0265,2022.8,2018.5,12.9619]
[1617605108317,45.0265,2022.8,2018.5,12.9619]
[1617605108518,45.0265,2022.8,2019.1,6.06711806]
[1617605108718,45.0265,2022.8,2019.3,4.96400568]
[1617605108918,47.0265,2022.8,2019.2,4.96534722]
[1617605109319,47.0265,2022.8,2019.1,4.96601633]
[1617605109518,47.0265,2022.8,2021.5,2.90695]
[1617605110119,47.0265,2022.8,2019.0,5.95943927]
[1617605110320,47.0265,2022.8,2019.0,0.9927]
[1617605111722,74.2739,2022.7,2018.9,13.7104]
[1617605111922,32.0,2022.6,2020.7,2.90695]
[1617605113827,32.0,2022.6,2018.9,13.7104]
[1617605113828,2.90695,2021.3,2021.2,2.90695]
[1617605114428,2.0,2022.2,2021.2,2.90695]